bitfinex-derivatives/quotes_ETHF0:USTF0_20240917
["timestamp","ask_amount","ask_price","bid_price","bid_amount"]
[1726580873719,0.43172,2316.2,2316.1,0.43173]
[1726580873921,1.07922,2316.4,2316.0,0.43174]
[1726580873922,0.43174,2316.1,2316.0,0.43174]
[1726580874212,1.07922,2316.4,2315.8,4.9832]
[1726580874213,0.43176,2316.0,2315.8,4.9832]
[1726580874618,0.8891,2316.3,2316.0,0.43174]
[1726580874818,0.43173,2316.1,2316.0,0.43174]
[1726580875017,0.43176,2316.0,2315.9,0.43176]
[1726580875407,7.5254,2316.0,2315.3,5.21961221]
[1726580875614,0.43179,2315.8,2315.7,0.4318]
[1726580876210,0.4318,2315.8,2315.7,0.4318]
[1726580877020,0.4318,2315.8,2315.3,1.9796]
[1726580877215,0.43179,2315.8,2315.6,0.43181]
[1726580877610,0.43181,2315.7,2315.6,0.43181]
[1726580877816,0.4318,2315.8,2315.7,0.43181]
[1726580878113,1.07935,2316.1,2315.7,3.2078]
[1726580878316,11.9789,2316.3,2315.6,4.28736]
[1726580878515,5.0411,2316.3,2315.7,1.07953]
[1726580878716,0.43172,2316.2,2316.1,0.43173]
[1726580878915,0.4317,2316.3,2316.2,0.4317]
[1726580879121,1.0792,2316.4,2315.9,3.2078]
[1726580879421,0.43174,2316.1,2316.0,0.43175]
[1726580879824,0.43174,2316.1,2316.0,0.43174]
[1726580880215,0.43172,2316.2,2315.9,0.43175]
[1726580880509,0.43172,2316.2,2316.1,0.43172]
[1726580880717,0.30829709,2317.1,2316.1,0.43172]
[1726580880718,3.2078,2317.0,2316.1,9.2078]
[1726580880937,1.0789,2317.1,2316.4,3.2078]
[1726580881220,1.07902,2316.8,2316.4,3.63947]
[1726580881417,0.43164,2316.6,2316.5,0.43165]
[1726580881616,0.43161,2316.8,2316.6,0.43164]
[1726580881815,3.2078,2316.8,2316.5,0.43165]
[1726580882116,4.28677,2316.9,2316.4,0.43167]
[1726580882414,4.28677,2316.9,2316.2,2.7032]
[1726580882415,1.07892,2317.0,2316.2,5.911]
[1726580882619,4.28679,2316.9,2316.2,5.911]
[1726580882816,0.43163,2316.7,2316.5,0.43165]
[1726580883014,0.43161,2316.8,2316.6,0.43163]
[1726580883322,0.43163,2316.7,2316.5,0.43164]
[1726580883514,0.43162,2316.8,2316.2,5.911]
[1726580883709,3.2078,2316.9,2316.2,6.99027]
[1726580883922,0.43161,2316.8,2316.6,0.43163]
[1726580884718,0.43168,2316.4,2316.2,2.2188]
[1726580884916,0.43168,2316.4,2316.2,1.7871]
[1726580885219,1.07916,2316.5,2316.2,0.9119]
[1726580885424,0.4317,2316.3,2316.2,0.9119]
[1726580886123,0.43167,2316.5,2316.3,0.43168]
[1726580886317,0.43168,2316.4,2316.2,1.7807]
[1726580886513,3.63946,2316.6,2316.2,1.7807]
[1726580886718,0.43167,2316.5,2316.3,0.43169]
[1726580887020,0.43169,2316.4,2316.2,2.21241]
[1726580887221,3.73,2316.6,2315.8,5.21311221]
[1726580887416,1.07918,2316.5,2315.9,0.8426]
[1726580887624,0.43173,2316.2,2316.0,0.43174]
[1726580887825,0.43172,2316.2,2316.1,0.43173]
[1726580888023,0.43171,2316.3,2316.1,0.43173]
[1726580888225,0.43169,2316.4,2316.2,0.43171]
[1726580888424,0.4317,2316.3,2316.1,0.43172]
[1726580888626,0.43171,2316.3,2315.9,0.8426]
[1726580888817,3.2078,2316.4,2315.9,0.8426]
[1726580889023,3.2078,2316.2,2315.9,0.8426]
[1726580889219,0.43175,2316.0,2315.8,1.27298]
[1726580889721,4.28711,2316.2,2315.6,2.05421221]
[1726580890016,1.51134,2315.7,2315.6,0.9266]
[1726580890219,7.6384,2315.7,2315.2,1.12761221]
[1726580890419,0.4319,2315.2,2315.1,1.12761221]
[1726580890622,4.39962,2315.5,2314.7,0.9266]
[1726580890819,4.39962,2315.5,2314.9,0.43195]
[1726580891130,0.43194,2315.0,2314.7,2.05421221]
[1726580891428,3.2078,2315.3,2314.8,0.43197]
[1726580891627,3.2078,2315.3,2314.9,0.43195]
[1726580891929,0.4319,2315.2,2314.8,0.43196]
[1726580892331,0.4319,2315.2,2314.8,3.63976]
[1726580892517,3.6397,2315.3,2314.9,0.43196]
[1726580892721,0.43191,2315.2,2314.8,3.63976]
[1726580893230,0.43191,2315.2,2314.9,0.43195]
[1726580893625,3.6397,2315.3,2314.9,0.43195]
[1726580893830,3.6397,2315.3,2315.0,0.43193]
[1726580893831,0.43188,2315.3,2315.0,0.43193]
[1726580894127,0.8443,2315.5,2314.7,4.1344]
[1726580894322,8.04537,2316.1,2315.0,3.2078]
[1726580894323,6.9378,2315.9,2315.0,3.2078]
[1726580894524,3.2078,2315.9,2315.5,0.43184]
[1726580894722,0.43182,2315.7,2315.1,8.1437]
[1726580894922,4.1218,2316.0,2315.2,0.888]
[1726580895229,0.43179,2315.8,2315.5,0.43184]
[1726580895618,4.55357,2316.0,2315.6,0.43181]
[1726580895819,3.2078,2316.0,2315.3,0.8854]
[1726580896022,0.43174,2316.1,2315.8,0.43178]
[1726580896925,0.43174,2316.1,2315.5,3.2078]
[1726580897126,0.43171,2316.3,2316.0,0.43174]
[1726580897529,4.1218,2316.5,2315.9,0.8929]
[1726580897725,0.43169,2316.4,2316.1,0.43172]
[1726580899024,0.43171,2316.3,2316.0,0.43175]
[1726580899227,0.43169,2316.4,2316.1,0.43173]
[1726580899734,0.4317,2316.3,2316.1,0.43173]
[1726580900033,0.43169,2316.4,2316.1,0.43173]
[1726580900221,0.4317,2316.3,2316.1,0.43173]
[1726580900618,4.1218,2316.5,2316.0,0.43175]
[1726580900823,4.1218,2316.5,2315.9,2.23217]
[1726580900824,0.43174,2316.1,2315.9,2.23217]
[1726580901018,1.51114,2316.0,2315.9,0.8929]
[1726580901224,0.43185,2315.5,2315.4,0.8717]
[1726580901527,4.3176,2316.1,2315.2,0.8691]
[1726580901528,1.0796,2315.6,2315.2,0.8691]
[1726580901724,0.43188,2315.4,2315.2,1.301]
[1726580902432,7.8558,2315.8,2315.2,0.8691]
[1726580902625,0.43183,2315.6,2315.4,0.43186]
[1726580903532,7.8558,2315.8,2315.2,0.8691]
[1726580903833,0.43186,2315.5,2315.3,0.43188]
[1726580904031,0.43186,2315.5,2315.2,1.30099]
[1726580904234,0.43187,2315.4,2315.2,1.30099]
[1726580904836,3.73,2315.4,2314.9,0.8717]
[1726580905042,3.73,2315.4,2315.1,0.43192]
[1726580905043,0.43189,2315.3,2315.1,0.43192]
[1726580905232,0.4319,2315.2,2315.0,0.43193]
[1726580905537,0.4319,2315.3,2314.9,0.8717]
[1726580905739,0.43193,2315.1,2314.9,1.30365]
[1726580905930,0.43193,2315.1,2314.9,0.8717]
[1726580906132,3.2078,2315.2,2314.5,4.092]
[1726580906339,0.43199,2314.8,2314.6,0.43201]
[1726580906532,4.80981,2315.1,2314.3,0.8951]
[1726580906736,3.73,2314.8,2314.3,0.8951]
[1726580906931,0.43205,2314.4,2314.3,0.8951]
[1726580907132,1.07981,2315.1,2313.9,4.33541221]
[1726580907133,3.73,2314.5,2313.9,3.2078]
[1726580907338,3.2078,2314.0,2313.3,1.34361221]
[1726580907527,3.63993,2314.0,2313.3,1.797]
[1726580907728,3.73,2314.2,2313.6,0.4322]
[1726580907927,3.42012835,2314.3,2313.5,3.2078]
[1726580907928,3.2078,2314.3,2313.5,3.2078]
[1726580908230,3.2078,2314.3,2314.0,0.43211]
[1726580908634,3.2078,2314.3,2313.8,3.2078]
[1726580908635,3.2078,2314.3,2313.9,0.43214]
[1726580908833,3.63987,2314.3,2313.9,0.43214]
[1726580909034,3.2078,2314.3,2314.0,0.43212]
[1726580909238,3.2078,2314.3,2313.8,3.2078]
[1726580909442,3.2078,2314.3,2314.0,0.43212]
[1726580909941,4.16204,2314.5,2314.1,0.43211]
[1726580910139,3.73,2314.5,2314.1,0.43211]
[1726580910439,3.2078,2314.6,2314.3,0.43207]
[1726580910632,3.73,2315.1,2314.1,3.2078]
[1726580910833,0.43194,2315.0,2314.6,0.432]
[1726580911041,3.73,2315.1,2314.5,0.43202]
[1726580911042,0.43196,2314.9,2314.5,0.43202]
[1726580911233,0.43195,2315.0,2314.6,0.43201]
[1726580911429,0.43196,2314.9,2314.5,0.43203]
[1726580911627,0.43198,2314.8,2314.4,0.43204]
[1726580911839,3.2078,2314.6,2314.1,4.0581]
[1726580912143,0.432,2314.7,2314.3,0.43206]
[1726580912439,0.432,2314.7,2314.1,4.0581]
[1726580912440,0.43204,2314.5,2314.1,0.43209]
[1726580912640,6.9378,2314.8,2314.1,0.43211]
[1726580912843,0.43202,2314.6,2314.2,0.43209]
[1726580913331,0.43202,2314.6,2314.1,3.2078]
[1726580913537,0.43202,2314.6,2314.2,0.43207]
[1726580913739,0.432,2314.7,2314.1,3.2078]
[1726580914043,7.7954,2314.8,2314.2,3.63987]
[1726580914238,7.7954,2314.8,2314.2,3.2078]
[1726580914239,1.07999,2314.7,2314.2,3.2078]
[1726580914439,3.32,2314.4,2314.0,0.9091]
[1726580914631,3.32,2314.4,2314.0,4.54902]
[1726580914833,3.32,2314.4,2314.0,1.34122]
[1726580914834,0.43207,2314.3,2314.0,1.34122]
[1726580915038,3.32,2314.4,2314.0,0.9091]
[1726580915342,3.32,2314.4,2314.2,0.43208]
[1726580915540,3.63984,2314.5,2314.2,0.43208]
[1726580915732,3.2078,2314.5,2314.0,0.9091]
[1726580915947,3.2078,2314.5,2314.4,0.43205]
[1726580916129,0.43204,2314.5,2314.2,0.43207]
[1726580916335,0.43203,2314.6,2314.3,0.43206]
[1726580916534,3.32,2314.7,2314.4,0.43205]
[1726580916738,3.75201,2314.7,2314.4,0.43205]
[1726580916936,3.32,2314.7,2314.0,0.9091]
[1726580917239,3.75206,2314.4,2314.0,0.9091]
[1726580917546,0.43207,2314.3,2314.1,0.4321]
[1726580917842,3.32,2314.4,2314.0,0.9091]
[1726580918034,0.43208,2314.3,2314.0,1.34122]
[1726580918238,0.43208,2314.3,2314.1,0.43211]
[1726580918646,3.32,2314.4,2314.0,0.9091]
[1726580918842,3.32,2314.4,2314.3,0.43207]
[1726580919039,3.2078,2314.5,2314.2,0.43207]
[1726580919245,0.43208,2314.3,2314.1,0.43209]
[1726580919943,0.43207,2314.4,2314.1,0.43209]
[1726580920247,0.43207,2314.4,2314.2,0.43208]
[1726580920445,3.63984,2314.5,2314.2,0.43209]
[1726580920635,3.63984,2314.5,2314.3,0.43206]
[1726580921140,3.2078,2314.5,2314.4,0.43205]
[1726580921443,3.32,2314.7,2314.5,0.43201]
[1726580921641,3.2078,2314.8,2314.7,0.43199]
[1726580921942,3.32,2315.0,2314.4,1.08013]
[1726580922142,3.32,2315.0,2314.5,0.826]
[1726580922339,3.32,2315.0,2314.9,0.43196]
[1726580922540,3.75195,2315.0,2314.8,0.43197]
[1726580922941,3.32,2315.0,2314.8,0.43197]
[1726580923148,3.32,2315.0,2314.9,0.43196]
[1726580923455,3.63973,2315.1,2314.9,0.43196]
[1726580923837,3.2078,2315.1,2314.6,0.9104]
[1726580924039,0.43195,2315.0,2314.9,0.43196]
[1726580924240,0.43195,2315.0,2314.8,0.43196]
[1726580924441,3.63973,2315.1,2314.6,0.9104]
[1726580924738,0.43194,2315.0,2314.9,0.43195]
[1726580924935,0.43194,2315.0,2314.6,4.1182]
[1726580925141,3.63973,2315.1,2315.0,0.43194]
[1726580925334,3.63973,2315.1,2314.6,0.9104]
[1726580925335,3.2078,2315.1,2314.6,0.9104]
[1726580925537,0.43191,2315.2,2315.0,0.43192]
[1726580925736,0.43191,2315.2,2314.8,3.2078]
[1726580926140,3.2078,2315.2,2314.6,0.9104]
[1726580926342,0.43194,2315.0,2314.9,0.43195]
[1726580926847,1.07981,2315.1,2314.8,0.43197]
[1726580927037,1.07981,2315.1,2314.6,0.9104]
[1726580927038,0.43197,2314.9,2314.6,0.9104]
[1726580927238,0.43197,2314.9,2314.7,0.43198]
[1726580927651,0.43198,2314.8,2314.7,0.43198]
[1726580928041,0.43198,2314.8,2314.6,0.9104]
[1726580928042,0.43197,2314.9,2314.8,0.43198]
[1726580928247,0.43198,2314.8,2314.7,0.43199]
[1726580928547,3.32,2315.0,2314.6,0.9104]
[1726580928846,0.43197,2314.9,2314.7,0.43198]
[1726580929053,0.43197,2314.9,2314.8,0.43198]
[1726580929351,3.75195,2315.0,2314.9,0.43196]
[1726580929544,0.43196,2314.9,2314.8,0.43196]
[1726580929743,3.32,2315.0,2314.6,0.9104]
[1726580930049,0.43193,2315.1,2315.0,0.43193]
[1726580930242,0.43195,2315.0,2314.9,0.43194]
[1726580930650,3.2078,2315.2,2315.1,0.43192]
[1726580930843,3.6397,2315.2,2315.1,0.43192]
[1726580931349,3.63971,2315.2,2315.1,0.43192]
[1726580931850,3.2078,2315.2,2314.6,1.99041]
[1726580932051,1.07982,2315.1,2314.6,1.99043]
[1726580932344,0.43193,2315.1,2315.0,0.43193]
[1726580932746,0.43197,2314.9,2314.8,0.43196]
[1726580932949,0.43197,2314.9,2314.6,0.9104]
[1726580932950,0.43195,2315.0,2314.9,0.43195]
[1726580933845,3.63972,2315.2,2315.1,0.43192]
[1726580934042,0.43189,2315.3,2315.2,0.4319]
[1726580934243,0.43188,2315.4,2315.3,0.43187]
[1726580934444,0.4319,2315.3,2315.2,0.43189]
[1726580935544,0.43191,2315.2,2314.9,4.28769]
[1726580935749,0.43192,2315.2,2315.1,0.43191]
[1726580936351,0.43193,2315.1,2315.0,0.43192]
[1726580936646,0.43191,2315.2,2315.1,0.4319]
[1726580936853,0.43193,2315.1,2315.0,0.43192]
[1726580937042,0.43191,2315.2,2315.1,0.4319]
[1726580937454,0.4319,2315.3,2315.2,0.43189]
[1726580937750,3.32,2315.4,2315.3,0.43188]
[1726580937751,3.75188,2315.4,2315.3,0.43188]
[1726580937945,3.75188,2315.4,2315.2,0.4319]
[1726580937946,0.4319,2315.3,2315.2,0.4319]
[1726580938148,0.43194,2315.0,2314.9,3.2078]
[1726580938352,1.07979,2315.2,2314.5,1.08005]
[1726580938655,1.07986,2315.0,2314.4,4.9427]
[1726580938947,7.4264,2315.1,2314.7,0.43199]
[1726580939147,0.43197,2314.9,2314.8,0.43197]
[1726580939551,1.07986,2315.0,2314.5,3.2078]
[1726580939846,1.07986,2315.0,2314.4,4.9427]
[1726580939847,0.43199,2314.7,2314.4,4.9427]
[1726580940060,0.43199,2314.7,2314.4,0.8507]
[1726580940443,0.43203,2314.5,2314.4,0.8507]
[1726580940644,0.43203,2314.5,2314.3,0.43205]
[1726580940645,0.43206,2314.4,2314.3,0.43205]
[1726580940843,3.32,2314.5,2314.4,0.43205]
[1726580941050,0.43206,2314.4,2314.1,0.8872]
[1726580941254,0.43206,2314.4,2314.3,0.43206]
[1726580941255,0.43205,2314.4,2314.3,0.43206]
[1726580941450,3.75205,2314.5,2314.4,0.43205]
[1726580941750,3.32,2314.8,2314.4,3.2078]
[1726580941955,0.43205,2314.4,2314.1,0.8872]
[1726580942141,0.43203,2314.6,2314.5,0.43202]
[1726580942341,6.5278,2314.8,2314.2,3.2078]
[1726580942542,0.43209,2314.2,2314.1,1.3193]
[1726580942751,0.43216,2313.8,2313.7,3.2078]
[1726580942953,0.43219,2313.7,2313.5,2.13111]
[1726580943149,0.43217,2313.8,2313.6,0.4322]
[1726580943344,3.75216,2313.9,2313.6,0.4322]
[1726580943548,3.75216,2313.9,2313.5,1.6989]
[1726580943744,0.43216,2313.8,2313.5,2.1311]
[1726580943954,0.43217,2313.8,2313.6,0.43219]
[1726580944156,0.43216,2313.8,2313.5,5.33891]
[1726580944350,3.75221,2313.6,2313.2,3.2078]
[1726580944560,3.75221,2313.6,2313.2,3.64006]
[1726580944561,6.96001,2313.6,2313.2,3.64006]
[1726580945252,3.75215,2313.9,2313.5,0.4322]
[1726580945552,6.5278,2313.9,2313.0,6.03171221]
[1726580945748,3.2078,2313.5,2313.0,1.6963]
[1726580946151,3.64002,2313.5,2313.2,0.43227]
[1726580946453,3.64003,2313.5,2313.1,0.43229]
[1726580946655,3.64003,2313.5,2313.0,1.6963]
[1726580946656,3.2078,2313.5,2313.0,1.6963]
[1726580946850,3.32,2313.6,2313.1,0.43229]
[1726580947052,1.89911,2313.9,2312.8,4.092]
[1726580947053,0.4323,2313.1,2312.8,4.092]
[1726580947254,3.32,2313.3,2312.8,3.2078]
[1726580947461,3.32,2313.3,2312.6,0.8469]
[1726580947650,3.2078,2313.2,2312.6,0.8469]
[1726580947959,1.26033,2313.5,2313.1,0.43228]
[1726580948250,3.75226,2313.3,2313.0,0.4323]
[1726580948444,3.32,2313.3,2313.1,0.43229]
[1726580948647,4.46813,2313.5,2313.2,0.43227]
[1726580948860,3.75221,2313.6,2312.9,3.2078]
[1726580949157,3.75221,2313.6,2312.7,1.12761221]
[1726580949158,3.2078,2313.8,2313.2,3.2078]
[1726580949451,3.2078,2313.8,2313.5,0.4322]
[1726580949657,3.63997,2313.8,2313.5,0.4322]
[1726580949859,3.63996,2313.8,2313.6,0.4322]
[1726580950051,3.2078,2313.8,2313.3,0.8347]
[1726580950250,3.2078,2313.8,2313.6,0.43219]
[1726580950457,3.2078,2313.8,2313.7,0.43218]
[1726580950965,0.8505,2314.3,2313.9,0.43214]
[1726580951148,1.28258,2314.3,2314.0,0.43212]
[1726580951460,0.43209,2314.2,2314.0,0.43212]
[1726580951650,0.8505,2314.3,2314.0,0.43212]
[1726580951847,3.2078,2314.1,2313.4,7.2998]
[1726580952047,0.43215,2313.9,2313.7,0.43218]
[1726580952245,3.2078,2314.1,2313.8,0.43216]
[1726580952450,3.7521,2314.2,2313.4,3.2078]
[1726580952749,0.8505,2314.3,2313.7,1.08046]
[1726580952950,6.5278,2314.4,2313.8,0.8226]
[1726580953155,3.75205,2314.4,2314.1,0.43209]
[1726580953359,3.32,2314.4,2314.0,3.2078]
[1726580953552,3.75205,2314.4,2313.9,0.8747]
[1726580953752,3.75205,2314.4,2314.2,0.43208]
[1726580953953,0.43209,2314.2,2314.0,0.43212]
[1726580954348,0.43208,2314.3,2314.1,0.4321]
[1726580954552,6.5278,2314.4,2314.0,0.43211]
[1726580954754,0.43209,2314.3,2314.0,0.43211]
[1726580954955,0.43211,2314.2,2314.0,0.43211]
[1726580955253,0.43208,2314.3,2314.1,0.4321]
[1726580955851,6.95986,2314.4,2314.2,0.43209]
[1726580956162,1.08002,2314.7,2313.9,4.0825]
[1726580956163,3.32,2314.7,2313.9,4.0825]
[1726580956460,0.43199,2314.8,2314.1,1.08027]
[1726580956662,4.1701,2315.0,2314.8,0.43197]
[1726580956862,4.60205,2315.0,2314.4,1.08011]
[1726580957164,0.43193,2315.1,2314.9,0.43196]
[1726580957361,3.2078,2315.2,2314.5,1.94526]
[1726580957362,0.43195,2315.0,2314.5,0.8652]
[1726580957661,3.2078,2315.2,2314.9,0.43196]
[1726580957961,3.32,2315.0,2314.6,3.2078]
[1726580958165,0.43196,2314.9,2314.8,0.43197]
[1726580958358,0.43196,2314.9,2314.5,0.8652]
[1726580958564,0.43198,2314.8,2314.6,0.43201]
[1726580958868,3.32,2315.0,2314.5,0.8652]
[1726580959070,0.43197,2314.9,2314.7,0.43198]
[1726580959271,3.75195,2315.0,2314.8,0.43197]
[1726580959470,3.75195,2315.0,2314.5,0.8652]
[1726580959762,0.43192,2315.1,2314.6,4.28784]
[1726580959955,0.43192,2315.1,2315.0,0.43194]
[1726580960361,0.43194,2315.0,2314.9,0.43195]
[1726580960560,3.2078,2315.2,2314.9,0.43195]
[1726580960561,0.43193,2315.1,2314.9,0.43195]
[1726580960762,0.43194,2315.0,2314.9,0.43195]
[1726580961060,0.43194,2315.0,2314.8,0.43196]
[1726580961061,7.64,2315.0,2314.8,0.43196]
[1726580961262,3.75195,2315.0,2314.8,0.43196]
[1726580961571,0.43196,2314.9,2314.8,0.43196]
[1726580962765,3.32,2315.0,2314.7,0.43199]
[1726580962969,0.43198,2314.8,2314.7,0.43199]
[1726580963573,0.43197,2314.9,2314.8,0.43197]
[1726580963772,0.43198,2314.8,2314.7,0.43198]
[1726580963972,0.432,2314.7,2314.6,0.43201]
[1726580964166,1.07991,2314.9,2314.5,0.8652]
[1726580964871,0.43199,2314.8,2314.7,0.43199]
[1726580965075,0.43201,2314.7,2314.6,0.43201]
[1726580965375,0.43198,2314.8,2314.7,0.43198]
[1726580965877,0.43201,2314.7,2314.6,0.432]
[1726580966177,4.52857,2314.9,2314.8,0.43198]
[1726580966470,0.43199,2314.8,2314.7,0.43198]
[1726580968775,3.63977,2314.9,2314.8,0.43198]
[1726580968968,0.43198,2314.8,2314.7,0.43199]
[1726580970177,0.43201,2314.7,2314.6,0.43201]
[1726580970769,8.72001,2314.7,2314.3,3.2078]
[1726580970970,8.72001,2314.7,2314.1,0.8549]
[1726580970971,0.43209,2314.2,2314.1,1.3209]
[1726580971171,0.43208,2314.3,2314.2,0.43207]
[1726580971379,4.40014,2314.4,2313.9,0.8888]
[1726580971583,0.43213,2314.0,2313.7,1.24607]
[1726580971778,3.32,2314.1,2313.7,0.8139]
[1726580972086,0.43214,2314.0,2313.8,0.43215]
[1726580972278,0.43214,2314.0,2313.7,0.8139]
[1726580972482,0.43214,2313.9,2313.8,0.43216]
[1726580972782,0.43214,2314.0,2313.8,0.43216]
[1726580973081,0.43214,2314.0,2313.4,1.96938]
[1726580973082,7.60819,2313.9,2313.4,0.8888]
[1726580973281,0.43221,2313.6,2313.4,0.8888]
[1726580973485,0.43222,2313.5,2313.4,0.8888]
[1726580973681,0.43222,2313.5,2313.0,0.8703]
[1726580973682,0.43224,2313.4,2313.2,0.43227]
[1726580973885,0.43223,2313.5,2313.3,0.43226]
[1726580974082,0.43221,2313.6,2313.0,0.8703]
[1726580974286,0.43221,2313.6,2313.3,3.64004]
[1726580974487,0.43221,2313.6,2313.3,0.43224]
[1726580974683,0.4322,2313.6,2313.4,0.43224]
[1726580975385,0.43219,2313.7,2313.2,3.2078]
[1726580975888,8.44899,2313.9,2313.7,0.43217]
[1726580975889,0.43214,2313.9,2313.7,0.43217]
[1726580976094,3.2078,2314.2,2313.3,4.28845]
[1726580976390,3.2078,2314.2,2313.8,0.43215]
[1726580976391,0.43213,2314.0,2313.8,0.43215]
[1726580976789,0.43211,2314.1,2313.9,0.43213]
[1726580977093,0.43212,2314.1,2313.9,0.43213]
[1726580977295,0.43208,2314.3,2314.1,0.4321]
[1726580977592,3.32,2314.4,2314.1,0.4321]
[1726580977890,3.2078,2314.3,2313.7,0.8204]
[1726580978091,0.43215,2313.9,2313.7,1.25257]
[1726580978287,0.43216,2313.8,2313.7,0.8204]
[1726580978481,3.32,2314.1,2313.7,0.8204]
[1726580978684,1.08018,2314.3,2313.9,0.43214]
[1726580978882,0.43213,2314.0,2313.8,0.43215]
[1726580979097,0.43213,2314.0,2313.8,0.43216]
[1726580979297,0.43212,2314.1,2313.9,0.43214]
[1726580979483,3.32,2314.2,2313.8,0.43215]
[1726580979793,0.43214,2314.0,2313.9,0.43214]
[1726580980090,0.43212,2314.1,2313.9,0.43214]
[1726580980691,3.32,2314.2,2313.9,0.43214]
[1726580980887,3.32,2314.2,2314.0,0.43212]
[1726580981085,3.32,2314.2,2313.8,3.2078]
[1726580981282,3.32,2314.2,2314.0,0.43212]
[1726580981283,3.7521,2314.2,2314.0,0.43212]
[1726580981685,0.43211,2314.1,2313.7,0.8204]
[1726580981885,3.32,2314.2,2314.0,0.43211]
[1726580982092,0.43211,2314.1,2314.0,0.43211]
[1726580982494,0.43211,2314.1,2313.9,0.43213]
[1726580983491,3.32,2314.2,2313.7,0.8204]
[1726580983492,4.40026,2314.2,2313.8,0.43215]
[1726580983694,0.43214,2313.9,2313.8,0.43215]
[1726580983991,0.43214,2314.0,2313.8,0.43215]
[1726580984193,0.43214,2313.9,2313.8,0.43215]
[1726580984598,0.43214,2314.0,2313.8,0.43215]
[1726580984898,0.43214,2313.9,2313.8,0.43215]
[1726580985098,0.43214,2313.9,2313.7,0.8204]
[1726580985099,0.43214,2314.0,2313.9,0.43214]
[1726580985805,3.2078,2314.1,2313.7,0.8204]
[1726580986098,3.63991,2314.1,2314.0,0.43213]
[1726580986302,0.43213,2314.0,2313.9,0.43213]
[1726580986501,3.2078,2314.1,2314.0,0.43213]
[1726580986999,3.2078,2314.1,2313.7,0.8204]
[1726580987304,0.43215,2313.9,2313.8,0.43215]
[1726580987697,0.43214,2314.0,2313.9,0.43214]
[1726580987895,0.43215,2313.9,2313.8,0.43215]
[1726580988099,0.43214,2314.0,2313.9,0.43214]
[1726580989706,4.28808,2314.1,2314.0,0.43213]
[1726580989707,3.63991,2314.1,2314.0,0.43213]
[1726580990105,3.2078,2314.1,2314.0,0.43213]
[1726580990604,3.63991,2314.1,2314.0,0.43213]
[1726580990793,3.2078,2314.1,2314.0,0.43213]
[1726580990997,3.63991,2314.1,2314.0,0.43213]
[1726580991399,3.63991,2314.1,2313.9,0.43213]
[1726580991400,0.43214,2314.0,2313.9,0.43213]
[1726580991704,0.43216,2313.8,2313.7,1.25256]
[1726580991908,0.43216,2313.9,2313.8,0.43215]
[1726580992905,0.43222,2313.5,2313.4,0.43223]
[1726580993109,0.43226,2313.3,2313.2,4.092]
[1726580993302,0.43226,2313.3,2313.1,2.18038]
[1726580994107,1.08057,2313.5,2313.1,1.7481]
[1726580994307,6.5278,2313.6,2313.2,0.43227]
[1726580994505,1.08055,2313.5,2313.2,0.43227]
[1726580994706,0.43225,2313.4,2313.2,0.43227]
[1726580994905,0.43226,2313.3,2313.1,2.18038]
[1726580995204,0.43227,2313.3,2313.1,1.7481]
[1726580995405,3.2078,2313.3,2313.1,1.7481]
[1726580995608,4.3232,2313.2,2312.5,1.12761221]
[1726580995906,4.3232,2313.2,2312.2,4.092]
[1726580995907,0.43243,2312.4,2312.2,3.2078]
[1726580996204,3.32,2312.6,2312.2,0.43245]
[1726580996397,3.32,2312.6,2312.0,1.7354]
[1726580996712,3.32,2312.6,2312.0,0.864]
[1726580996713,3.2078,2312.2,2312.0,0.864]
[1726580997913,3.75244,2312.4,2312.0,0.864]
[1726580998109,3.32,2312.4,2312.0,0.864]
[1726580999412,3.75243,2312.4,2312.0,0.864]
[1726580999599,3.32,2312.4,2312.0,0.864]
[1726581000306,3.2078,2312.5,2312.0,1.29649]
[1726581000505,3.2078,2312.5,2312.1,0.43248]
[1726581001008,3.2078,2312.5,2312.0,0.864]
[1726581001199,3.32,2312.4,2312.0,0.864]
[1726581001908,0.43246,2312.3,2312.0,0.864]
[1726581002207,0.43246,2312.3,2311.5,0.8714]
[1726581002208,3.32,2312.1,2311.5,0.8714]
[1726581002413,1.90684,2312.9,2311.5,0.8714]
[1726581002414,6.5278,2311.9,2311.5,0.8714]
[1726581002612,3.2078,2311.6,2311.3,4.092]
[1726581002912,3.2078,2311.6,2311.2,0.8841]
[1726581003103,3.2078,2311.6,2311.4,0.4326]
[1726581003307,3.2078,2311.6,2311.5,0.43259]
[1726581003911,3.2078,2311.6,2311.4,0.4326]
[1726581004112,3.2078,2311.6,2311.3,0.43262]
[1726581004309,0.4326,2311.5,2311.2,1.31674]
[1726581004511,6.5278,2311.3,2310.9,0.8114]
[1726581004716,0.43265,2311.2,2310.9,1.24409]
[1726581005009,6.5278,2311.3,2310.9,0.8114]
[1726581005214,6.96043,2311.3,2311.0,0.43268]
[1726581005411,6.96043,2311.3,2311.0,0.43269]
[1726581005412,6.5278,2311.3,2311.0,0.43269]
[1726581005610,6.96043,2311.3,2311.0,0.43268]
[1726581005811,6.5278,2311.3,2310.9,0.8114]
[1726581006220,3.2078,2311.6,2311.0,7.535]
[1726581006408,3.2078,2311.6,2311.0,3.2078]
[1726581006604,3.2078,2311.6,2311.5,0.43259]